fUST/lending_fUST_20250227
["ID","MTS","AMOUNT","RATE_DAILY","PERIOD"]
[354732587,1740649843097,-2928.1,0.0005041,120]
[354732588,1740649843107,-1227.17,0.0005041,120]
[354732589,1740649843116,-500.0,0.00050684,120]
[354732590,1740649843125,-500.0,0.00050684,120]
[354732591,1740649843134,-500.0,0.00050684,120]
[354732592,1740649843143,-500.0,0.00050684,120]
[354732593,1740649843152,-2763.17,0.00050684,120]
[354732594,1740649843161,-506.23,0.00050684,120]
[354732595,1740649843171,-500.0,0.00050684,120]
[354732596,1740649843181,-2068.77,0.00050684,120]
[354732597,1740649843191,-1028.38,0.00050684,120]
[354732598,1740649843200,-670.48,0.00050684,120]
[354732600,1740649843212,-999.77,0.00050684,120]
[354732602,1740649843222,-558.29,0.00050684,120]
[354732604,1740649843232,-500.0,0.00050684,120]
[354732606,1740649843242,-500.0,0.00050684,120]
[354732608,1740649843252,-3230.55,0.00050684,6]
[354732610,1740649843261,-675.26,0.00050684,120]
[354732613,1740649843271,-500.0,0.00050684,120]
[354732615,1740649843280,-4237.99,0.00050684,120]
[354732617,1740649843290,-500.0,0.00050684,120]
[354732618,1740649843300,-1161.12,0.00050684,120]
[354732621,1740649843312,-4113.94,0.00050684,120]
[354732623,1740649843322,-24591.58,0.00050684,7]
[354732625,1740649843331,-500.0,0.00050684,120]
[354732627,1740649843340,-500.0,0.00050684,120]
[354732629,1740649843349,-527.58,0.00050684,120]
[354732631,1740649843360,-1035.38,0.00050684,120]
[354732633,1740649843369,-2928.1,0.00050684,120]
[354732635,1740649843379,-1227.17,0.00050684,120]
[354732637,1740649843388,-153.14,0.000507,30]
[354732639,1740649843397,-27457.87,0.000507,30]
[354732641,1740649843407,-500.0,0.00050958,120]
[354732643,1740649843416,-500.0,0.00050958,120]
[354732645,1740649843426,-257.93,0.00050958,120]
[354732647,1740649843435,-500.0,0.00050958,120]
[354732649,1740649843445,-2763.17,0.00050958,120]
[354732651,1740649843454,-506.23,0.00050958,120]
[354732653,1740649843463,-500.0,0.00050958,120]
[354732655,1740649843473,-2068.77,0.00050958,120]
[354732657,1740649843482,-1028.38,0.00050958,120]
[354732659,1740649843491,-670.48,0.00050958,120]
[354732661,1740649843501,-999.77,0.00050958,120]
[354732663,1740649843510,-558.29,0.00050958,120]
[354732665,1740649843519,-330.0,0.00050958,120]
[354732667,1740649843529,-500.0,0.00050958,120]
[354732669,1740649843538,-3230.55,0.00050958,6]
[354732672,1740649843547,-675.26,0.00050958,120]
[354732676,1740649843557,-500.0,0.00050958,120]
[354732679,1740649843567,-4237.99,0.00050958,120]
[354732682,1740649843576,-312.59,0.00050958,120]
[354732684,1740649843585,-1161.12,0.00050958,120]
[354732686,1740649843595,-4113.94,0.00050958,120]
[354732688,1740649843606,-24591.58,0.00050958,7]
[354732690,1740649843617,-500.0,0.00050958,120]
[354732692,1740649843627,-500.0,0.00050958,120]
[354732694,1740649843636,-527.58,0.00050958,120]
[354732696,1740649843645,-1035.38,0.00050958,120]
[354732698,1740649843654,-2928.1,0.00050958,120]
[354732700,1740649843663,-1227.17,0.00050958,120]
[354732702,1740649843673,-424.0,0.00051,120]
[354732704,1740649843682,-424.0,0.00051,120]
[354732706,1740649843692,-1691.12,0.00051,30]
[354732708,1740649843702,-170.0,0.00051,120]
[354732710,1740649843711,-500.0,0.000511,10]
[354732712,1740649843720,-500.0,0.000511,10]
[354732714,1740649843729,-585.07855909,0.000511,10]
[354732716,1740649843738,-500.0,0.000511,10]
[354732718,1740649843747,-500.0,0.000511,10]
[354732720,1740649843757,-500.0,0.00051232,120]
[354732722,1740649843766,-500.0,0.00051232,120]
[354732724,1740649843775,-376.9,0.00051232,120]
[354732726,1740649843784,-2763.17,0.00051232,120]
[354732728,1740649843793,-506.23,0.00051232,120]
[354732730,1740649843802,-500.0,0.00051232,120]
[354732732,1740649843812,-2068.77,0.00051232,120]
[354732734,1740649843822,-1028.38,0.00051232,120]
[354732736,1740649843831,-670.48,0.00051232,120]
[354732738,1740649843840,-999.77,0.00051232,120]
[354732740,1740649843849,-558.29,0.00051232,120]
[354732742,1740649843859,-500.0,0.00051232,120]
[354732744,1740649843868,-3230.55,0.00051232,6]
[354732746,1740649843877,-675.26,0.00051232,120]
[354732748,1740649843886,-500.0,0.00051232,120]
[354732750,1740649843896,-4237.99,0.00051232,120]
[354732752,1740649843907,-1161.12,0.00051232,120]
[354732754,1740649843916,-4113.94,0.00051232,120]
[354732756,1740649843925,-18335.16574607,0.00051232,7]
[354732794,1740649844270,-500.0,0.00046575,120]
[354732796,1740649844282,-500.0,0.00046575,120]
[354732798,1740649844293,-500.0,0.00046849,120]
[354732800,1740649844303,-500.0,0.00046849,120]
[354732802,1740649844312,-500.0,0.00046849,120]
[354732804,1740649844322,-500.0,0.00047123,120]
[354732806,1740649844333,-500.0,0.00047123,120]
[354732808,1740649844347,-500.0,0.00047123,120]
[354732809,1740649844357,-500.0,0.00047397,120]
[354732810,1740649844368,-500.0,0.00047397,120]
[354732811,1740649844379,-544.34,0.00047397,120]
[354732813,1740649844392,-500.0,0.00047671,120]
[354732815,1740649844403,-500.0,0.00047671,120]
[354732817,1740649844415,-500.0,0.00047945,120]
[354732819,1740649844426,-500.0,0.00047945,120]
[354732821,1740649844438,-500.0,0.00048219,120]
[354732823,1740649844450,-500.0,0.00048219,120]
[354732825,1740649844462,-500.0,0.00048493,120]
[354732827,1740649844474,-179.58000065,0.00048493,120]
[354732829,1740649844485,-500.0,0.00048767,120]
[354732831,1740649844497,-500.0,0.00049041,120]
[354732833,1740649844508,-500.0,0.00049315,120]
[354732835,1740649844518,-500.0,0.00049589,120]
[354732837,1740649844528,-500.0,0.00049863,120]
[354732838,1740649844538,-161.18,0.00050136,120]
[354732839,1740649844547,-6256.41425393,0.00051232,7]
[354732840,1740649844559,-499.0372619,0.00051232,120]
[354732852,1740649846357,-500.0,0.00046575,120]
[354732853,1740649846371,-0.9627381,0.00051232,120]
[354732854,1740649846383,-500.0,0.00051232,120]
[354732855,1740649846393,-527.58,0.00051232,120]
[354732856,1740649846406,-1035.38,0.00051232,120]
[354732857,1740649846416,-2928.1,0.00051232,120]
[354732858,1740649846427,-1227.17,0.00051232,120]
[354732859,1740649846438,-500.0,0.00051506,120]
[354732860,1740649846448,-2763.17,0.00051506,120]
[354732861,1740649846459,-1.31585389,0.00051506,120]
[354732870,1740650183160,403847.03163452,0.0003,30]
[354732871,1740650183184,57443.43521755,0.0003,30]
[354732872,1740650183921,-150.0,0.0003,30]
[354732873,1740650184543,-150.0,0.0003,30]
[354732874,1740650376154,-300.0,0.00029999,2]
[354732875,1740650376179,-38409.53314793,0.0003,30]
[354732876,1740650557372,500.0,0.00028204,10]
[354732877,1740650557672,500.0,0.00028204,10]
[354732878,1740650558049,500.0,0.00028204,10]
[354732879,1740650558377,500.0,0.00028204,10]
[354732880,1740650558761,500.0,0.00028204,10]
[354732881,1740650559112,500.0,0.00028204,10]
[354732882,1740650559446,500.0,0.00028204,10]
[354732883,1740650559832,500.0,0.00028204,10]
[354732884,1740650560192,500.0,0.00028204,10]
[354732885,1740650560554,500.0,0.00028204,10]
[354732886,1740650560899,500.0,0.00028204,10]
[354732887,1740650561244,500.0,0.00028204,10]
[354732888,1740650561596,873.32116532,0.00028204,10]
[354732889,1740650852968,764.69886497,0.00028204,10]
[354732914,1740651038342,-500.0,0.00033,2]
[354732915,1740651038352,-500.0,0.00033,2]
[354732916,1740651038361,-500.0,0.00033,2]
[354732917,1740651038372,-66.406344,0.00033,2]
[354732918,1740651040604,-433.593656,0.00033,2]
[354732919,1740651040614,-500.0,0.00033,2]
[354732920,1740651040624,-500.0,0.00033,2]
[354732921,1740651040632,-500.0,0.00033,2]
[354732922,1740651040641,-500.0,0.00033,2]
[354732923,1740651040650,-500.0,0.00033,2]
[354732924,1740651040660,-500.0,0.00033,2]
[354732925,1740651040669,-500.0,0.00033,2]
[354732926,1740651040679,-500.0,0.00033,2]
[354732927,1740651040688,-500.0,0.00033,2]
[354732928,1740651040698,-500.0,0.00033,2]
[354732929,1740651040708,-500.0,0.00033,2]
[354732930,1740651040722,-450.1866513,0.000362,98]
[354732931,1740651040732,-297.2196927,0.000459,120]
[354732941,1740651043913,-152.96695859,0.000459,120]
[354732942,1740651043923,-533.15597499,0.00046575,120]
[354732943,1740651043932,-500.0,0.00046575,120]
[354732944,1740651043942,-500.0,0.00046849,120]
[354732945,1740651043951,-204.43518837,0.000469,10]
[354732946,1740651043962,-500.0,0.00047123,120]
[354732947,1740651043971,-500.0,0.00047397,120]
[354732948,1740651043980,-376.15,0.00047671,120]
[354732949,1740651043990,-150.0,0.00048867,14]
[354732950,1740651043999,-150.0,0.00048867,14]
[354732951,1740651044009,-150.0,0.00049034,14]
[354732952,1740651044018,-150.0,0.00049034,14]
[354732953,1740651044028,-534.64677539,0.00049215,28]
[354732954,1740651044039,-8844.73,0.00049314,120]
[354732955,1740651044048,-294.44,0.00049315,120]
[354732956,1740651044058,-500.0,0.00049315,120]
[354732957,1740651044069,-500.0,0.00049315,120]
[354732958,1740651044081,-500.0,0.00049315,120]
[354732959,1740651044090,-500.0,0.00049315,120]
[354732960,1740651044100,-500.0,0.00049315,120]
[354732961,1740651044110,-209.22,0.00049315,120]
[354732962,1740651044120,-279.08,0.00049315,120]
[354732963,1740651044129,-446.3,0.00049315,120]
[354732964,1740651044138,-500.0,0.00049315,120]
[354732965,1740651044148,-500.0,0.00049315,120]
[354732966,1740651044157,-165.42661914,0.00049315,120]
[354732971,1740651046675,-334.57338086,0.00049315,120]
[354732972,1740651046686,-500.0,0.00049315,120]
[354732973,1740651046696,-500.0,0.00049315,120]
[354732974,1740651046708,-500.0,0.00049315,120]
[354732975,1740651046717,-500.0,0.00049315,120]
[354732976,1740651046727,-500.0,0.00049315,120]
[354732977,1740651046736,-500.0,0.00049315,120]
[354732978,1740651046745,-500.0,0.00049315,120]
[354732979,1740651046755,-500.0,0.00049315,120]
[354732980,1740651046764,-500.0,0.00049315,120]
[354732981,1740651046774,-214.19,0.00049315,120]
[354732982,1740651046783,-463.88,0.00049315,120]
[354732983,1740651046793,-500.0,0.00049315,120]
[354732984,1740651046802,-500.0,0.00049315,120]
[354732985,1740651046811,-500.0,0.00049315,120]
[354732986,1740651046820,-500.0,0.00049315,120]
[354732987,1740651046830,-500.0,0.00049315,120]
[354732988,1740651046839,-500.0,0.00049315,120]
[354732989,1740651046849,-235.11,0.00049315,120]
[354732990,1740651046859,-500.0,0.00049315,120]
[354732991,1740651046869,-500.0,0.00049315,120]
[354732992,1740651046878,-500.0,0.00049315,120]
[354732993,1740651046888,-500.0,0.00049315,120]
[354732994,1740651046897,-409.34,0.00049315,120]
[354732995,1740651046907,-500.0,0.00049315,120]
[354732996,1740651046916,-500.0,0.00049315,120]
[354732997,1740651046926,-500.0,0.00049315,120]
[354732998,1740651046937,-500.0,0.00049315,120]
[354732999,1740651046946,-300.0,0.00049315,120]
[354733001,1740651046956,-500.0,0.00049315,120]
[354733003,1740651046967,-551.55,0.00049315,120]
[354733004,1740651046976,-500.0,0.00049315,120]
[354733005,1740651046986,-500.0,0.00049315,120]
[354733006,1740651046995,-500.0,0.00049315,120]
[354733007,1740651047005,-500.0,0.00049315,120]
[354733008,1740651047014,-567.48,0.00049315,120]
[354733009,1740651047024,-500.0,0.00049315,120]
[354733010,1740651047034,-500.0,0.00049315,120]
[354733011,1740651047043,-500.0,0.00049315,120]
[354733012,1740651047052,-691.85,0.00049315,120]
[354733013,1740651047062,-500.0,0.00049315,120]
[354733014,1740651047071,-500.0,0.00049315,120]
[354733015,1740651047080,-500.0,0.00049315,120]
[354733016,1740651047089,-500.0,0.00049315,120]
[354733017,1740651047098,-500.0,0.00049315,120]
[354733018,1740651047108,-500.0,0.00049315,120]
[354733019,1740651047117,-1400.1,0.00049315,120]
[354733020,1740651047127,-500.0,0.00049315,120]
[354733021,1740651047136,-500.0,0.00049315,120]
[354733022,1740651047145,-500.0,0.00049315,120]
[354733023,1740651047154,-515.69,0.00049315,120]
[354733024,1740651047164,-313.67,0.00049315,120]
[354733025,1740651047173,-500.0,0.00049315,120]
[354733026,1740651047182,-500.0,0.00049315,120]
[354733027,1740651047192,-434.59,0.00049315,120]
[354733028,1740651047201,-500.0,0.00049315,120]
[354733029,1740651047211,-831.59,0.00049315,120]
[354733030,1740651047221,-500.0,0.00049315,120]
[354733031,1740651047230,-500.0,0.00049315,120]
[354733032,1740651047239,-500.0,0.00049315,120]
[354733033,1740651047249,-500.0,0.00049315,120]
[354733034,1740651047258,-500.0,0.00049315,120]
[354733035,1740651047267,-500.0,0.00049315,120]
[354733036,1740651047276,-500.0,0.00049315,120]
[354733037,1740651047286,-500.0,0.00049315,120]
[354733038,1740651047294,-1064.87,0.00049315,120]
[354733039,1740651047304,-500.0,0.00049315,120]
[354733040,1740651047313,-500.0,0.00049315,120]
[354733041,1740651047322,-681.47,0.00049315,120]
[354733042,1740651047331,-500.0,0.00049315,120]
[354733043,1740651047340,-500.0,0.00049315,120]
[354733044,1740651047349,-391.18497996,0.00049315,120]
[354733045,1740651047358,-1000.0,0.00049315,2]
[354733046,1740651047367,-500.0,0.00049315,120]
[354733047,1740651047380,-500.0,0.00049315,120]
[354733048,1740651047390,-500.0,0.00049315,120]
[354733049,1740651047399,-500.0,0.00049315,120]
[354733050,1740651047409,-500.0,0.00049315,120]
[354733051,1740651047419,-500.0,0.00049315,120]
[354733052,1740651047428,-500.0,0.00049315,120]
[354733053,1740651047437,-500.0,0.00049315,120]
[354733054,1740651047447,-500.0,0.00049315,120]
[354733055,1740651047456,-500.0,0.00049315,120]
[354733056,1740651047466,-500.0,0.00049315,120]
[354733057,1740651047475,-500.0,0.00049315,120]
[354733058,1740651047484,-500.0,0.00049315,120]
[354733059,1740651047493,-4103.51,0.00049315,6]
[354733060,1740651047503,-500.0,0.00049315,120]
[354733061,1740651047511,-500.0,0.00049315,120]
[354733062,1740651047520,-500.0,0.00049315,120]
[354733063,1740651047529,-500.0,0.00049315,120]
[354733064,1740651047539,-500.0,0.00049315,120]
[354733065,1740651047548,-500.0,0.00049315,120]
[354733066,1740651047557,-4987.29,0.00049315,120]
[354733067,1740651047566,-500.0,0.00049315,120]
[354733068,1740651047575,-500.0,0.00049315,120]
[354733069,1740651047584,-500.0,0.00049315,21]
[354733070,1740651047593,-500.0,0.00049315,120]
[354733071,1740651047602,-1371.92,0.00049315,120]
[354733072,1740651047611,-500.0,0.00049315,120]
[354733073,1740651047620,-500.0,0.00049315,120]
[354733074,1740651047630,-500.0,0.00049315,120]
[354733075,1740651047639,-500.0,0.00049315,120]
[354733076,1740651047648,-500.0,0.00049315,120]
[354733077,1740651047658,-500.0,0.00049315,120]
[354733078,1740651047668,-500.0,0.00049315,15]
[354733079,1740651047677,-500.0,0.00049315,120]
[354733080,1740651047687,-4348.34,0.00049315,120]
[354733081,1740651047697,-500.0,0.00049315,120]
[354733082,1740651047706,-500.0,0.00049315,120]
[354733083,1740651047717,-500.0,0.00049315,120]
[354733084,1740651047726,-500.0,0.00049315,120]
[354733085,1740651047736,-500.0,0.00049315,120]
[354733086,1740651047747,-500.0,0.00049315,120]
[354733087,1740651047756,-500.0,0.00049315,120]
[354733088,1740651047766,-521.92,0.00049315,120]
[354733089,1740651047775,-923.92,0.00049315,120]
[354733090,1740651047785,-500.0,0.00049315,120]
[354733091,1740651047794,-500.0,0.00049315,120]
[354733092,1740651047804,-500.0,0.00049315,120]
[354733093,1740651047813,-500.0,0.00049315,120]
[354733094,1740651047823,-4781.11,0.00049315,120]
[354733095,1740651047832,-1228.38,0.00049315,120]
[354733096,1740651047841,-500.0,0.00049315,120]
[354733097,1740651047851,-500.0,0.00049315,120]
[354733098,1740651047860,-500.0,0.00049315,2]
[354733099,1740651047869,-500.0,0.00049315,120]
[354733100,1740651047878,-500.0,0.00049315,120]
[354733101,1740651047887,-500.0,0.00049315,120]
[354733102,1740651047897,-500.0,0.00049315,120]
[354733103,1740651047906,-500.0,0.00049315,2]
[354733104,1740651047915,-30045.31,0.00049315,7]
[354733105,1740651047924,-500.0,0.00049315,120]
[354733106,1740651047933,-500.0,0.00049315,120]
[354733107,1740651047943,-2438.9,0.00049315,120]
[354733108,1740651047952,-500.0,0.00049315,20]
[354733109,1740651047962,-620.68,0.00049315,120]
[354733110,1740651047972,-500.0,0.00049315,20]
[354733111,1740651047981,-500.0,0.00049315,120]
[354733112,1740651047990,-500.0,0.00049315,120]
[354733113,1740651048002,-714.35,0.00049315,120]
[354733114,1740651048011,-500.0,0.00049315,120]
[354733115,1740651048020,-500.0,0.00049315,120]
[354733116,1740651048029,-500.0,0.00049315,120]
[354733117,1740651048039,-500.0,0.00049373,10]
[354733118,1740651048048,-500.0,0.00049573,10]
[354733119,1740651048057,-633.21,0.00049589,120]
[354733120,1740651048067,-500.0,0.00049589,120]
[354733121,1740651048076,-500.0,0.00049589,120]
[354733122,1740651048086,-500.0,0.00049589,120]
[354733123,1740651048095,-500.0,0.00049589,120]
[354733124,1740651048104,-500.0,0.00049589,120]
[354733125,1740651048113,-500.0,0.00049589,120]
[354733126,1740651048122,-500.0,0.00049589,120]
[354733127,1740651048132,-500.0,0.00049589,120]
[354733128,1740651048141,-582.26,0.00049589,120]
[354733129,1740651048151,-500.0,0.00049589,120]
[354733130,1740651048160,-500.0,0.00049589,120]
[354733131,1740651048170,-500.0,0.00049589,120]
[354733132,1740651048179,-500.0,0.00049589,120]
[354733133,1740651048188,-500.0,0.00049589,120]
[354733134,1740651048198,-500.0,0.00049589,120]
[354733135,1740651048208,-500.0,0.00049589,120]
[354733136,1740651048218,-500.0,0.00049589,120]
[354733137,1740651048227,-500.0,0.00049589,120]
[354733138,1740651048236,-500.0,0.00049589,120]
[354733139,1740651048246,-500.0,0.00049589,120]
[354733140,1740651048255,-500.0,0.00049589,120]
[354733141,1740651048264,-500.0,0.00049589,120]
[354733142,1740651048274,-500.0,0.00049589,120]
[354733143,1740651048283,-500.0,0.00049589,120]
[354733144,1740651048292,-500.0,0.00049589,120]
[354733145,1740651048301,-500.0,0.00049589,120]
[354733146,1740651048311,-500.0,0.00049589,120]
[354733147,1740651048320,-500.0,0.00049589,120]
[354733148,1740651048329,-228.19,0.00049589,120]
[354733149,1740651048339,-500.0,0.00049589,120]
[354733150,1740651048348,-553.29,0.00049589,120]
[354733151,1740651048357,-500.0,0.00049589,120]
[354733152,1740651048367,-500.0,0.00049589,120]
[354733153,1740651048379,-500.0,0.00049589,120]
[354733154,1740651048388,-161.41277667,0.00049589,120]
[354733155,1740651048397,-500.0,0.00049589,120]
[354733156,1740651048407,-691.85,0.00049589,120]
[354733157,1740651048417,-510.0196077,0.00049589,120]
[354733158,1740651048426,-500.0,0.00049589,120]
[354733159,1740651048435,-500.0,0.00049589,120]
[354733160,1740651048445,-500.0,0.00049589,120]
[354733161,1740651048455,-1400.1,0.00049589,120]
[354733162,1740651048466,-500.0,0.00049589,120]
[354733163,1740651048476,-500.0,0.00049589,120]
[354733164,1740651048485,-500.0,0.00049589,120]
[354733165,1740651048625,-515.69,0.00049589,120]
[354733166,1740651048635,-500.0,0.00049589,120]
[354733167,1740651048644,-500.0,0.00049589,120]
[354733168,1740651048654,-486.79,0.00049589,120]
[354733169,1740651048664,-831.59,0.00049589,120]
[354733170,1740651048674,-500.0,0.00049589,120]
[354733171,1740651048684,-500.0,0.00049589,120]
[354733172,1740651048693,-500.0,0.00049589,120]
[354733173,1740651048703,-500.0,0.00049589,120]
[354733174,1740651048713,-500.0,0.00049589,120]
[354733175,1740651048723,-500.0,0.00049589,120]
[354733176,1740651048733,-500.0,0.00049589,120]
[354733177,1740651048742,-634.18,0.00049589,120]
[354733178,1740651048751,-1064.87,0.00049589,120]
[354733179,1740651048761,-500.0,0.00049589,120]
[354733180,1740651048771,-681.47,0.00049589,120]
[354733181,1740651048780,-500.0,0.00049589,120]
[354733182,1740651048790,-1000.0,0.00049589,2]
[354733183,1740651048799,-500.0,0.00049589,120]
[354733184,1740651048809,-500.0,0.00049589,120]
[354733185,1740651048818,-500.0,0.00049589,120]
[354733186,1740651048828,-500.0,0.00049589,120]
[354733187,1740651048837,-500.0,0.00049589,120]
[354733188,1740651048846,-500.0,0.00049589,120]
[354733189,1740651048856,-500.0,0.00049589,120]
[354733190,1740651048865,-500.0,0.00049589,120]
[354733191,1740651048874,-500.0,0.00049589,120]
[354733192,1740651048884,-500.0,0.00049589,120]
[354733193,1740651048893,-500.0,0.00049589,120]
[354733194,1740651048903,-500.0,0.00049589,120]
[354733195,1740651048913,-4103.51,0.00049589,6]
[354733196,1740651048923,-500.0,0.00049589,120]
[354733197,1740651048933,-500.0,0.00049589,120]
[354733198,1740651048943,-500.0,0.00049589,120]
[354733199,1740651048952,-500.0,0.00049589,120]
[354733200,1740651048962,-500.0,0.00049589,120]
[354733201,1740651048971,-4987.29,0.00049589,120]
[354733202,1740651048981,-500.0,0.00049589,120]
[354733203,1740651048990,-500.0,0.00049589,120]
[354733204,1740651048999,-500.0,0.00049589,120]
[354733205,1740651049009,-1371.92,0.00049589,120]
[354733206,1740651049019,-500.0,0.00049589,120]
[354733207,1740651049028,-500.0,0.00049589,120]
[354733208,1740651049038,-500.0,0.00049589,120]
[354733209,1740651049047,-500.0,0.00049589,120]
[354733210,1740651049057,-500.0,0.00049589,120]
[354733211,1740651049066,-348.6271342,0.00049589,15]
[354733212,1740651049076,-500.0,0.00049589,120]
[354733213,1740651049086,-4348.34,0.00049589,120]
[354733214,1740651049095,-500.0,0.00049589,120]
[354733215,1740651049104,-500.0,0.00049589,120]
[354733216,1740651049114,-628.81,0.00049589,120]
[354733217,1740651049123,-500.0,0.00049589,120]
[354733218,1740651049132,-363.74909286,0.00049589,120]
[354733219,1740651049144,-500.0,0.00049589,120]
[354733220,1740651049154,-521.92,0.00049589,120]
[354733221,1740651049164,-923.92,0.00049589,120]
[354733222,1740651049173,-500.0,0.00049589,120]
[354733223,1740651049183,-500.0,0.00049589,120]
[354733224,1740651049192,-500.0,0.00049589,120]
[354733225,1740651049201,-500.0,0.00049589,120]
[354733226,1740651049211,-4781.11,0.00049589,120]
[354733227,1740651049220,-1228.38,0.00049589,120]
[354733228,1740651049229,-500.0,0.00049589,120]
[354733229,1740651049238,-500.0,0.00049589,120]
[354733230,1740651049248,-500.0,0.00049589,2]
[354733231,1740651049258,-500.0,0.00049589,120]
[354733232,1740651049267,-500.0,0.00049589,120]
[354733233,1740651049277,-500.0,0.00049589,120]
[354733234,1740651049287,-500.0,0.00049589,120]
[354733235,1740651049296,-500.0,0.00049589,2]
[354733236,1740651049305,-30045.31,0.00049589,7]
[354733237,1740651049315,-500.0,0.00049589,120]
[354733238,1740651049324,-2438.9,0.00049589,120]
[354733239,1740651049333,-500.0,0.00049589,120]
[354733240,1740651049343,-500.0,0.00049589,120]
[354733241,1740651049352,-714.35,0.00049589,120]
[354733242,1740651049362,-500.0,0.00049589,120]
[354733243,1740651049372,-500.0,0.00049589,120]
[354733244,1740651049385,-3000.0,0.00049763,120]
[354733245,1740651049395,-500.0,0.00049863,120]
[354733246,1740651049404,-500.0,0.00049863,120]
[354733247,1740651049415,-500.0,0.00049863,120]
[354733248,1740651049424,-500.0,0.00049863,120]
[354733249,1740651049433,-500.0,0.00049863,120]
[354733250,1740651049442,-500.0,0.00049863,120]
[354733251,1740651049453,-500.0,0.00049863,120]
[354733252,1740651049463,-500.0,0.00049863,120]
[354733253,1740651049472,-500.0,0.00049863,120]
[354733254,1740651049481,-500.0,0.00049863,120]
[354733255,1740651049490,-500.0,0.00049863,120]
[354733256,1740651049500,-500.0,0.00049863,120]
[354733257,1740651049509,-500.0,0.00049863,120]
[354733258,1740651049518,-500.0,0.00049863,120]
[354733259,1740651049527,-500.0,0.00049863,120]
[354733260,1740651049536,-500.0,0.00049863,120]
[354733261,1740651049546,-633.1,0.00049863,120]
[354733262,1740651049555,-500.0,0.00049863,120]
[354733263,1740651049564,-351.26,0.00049863,120]
[354733264,1740651049573,-500.0,0.00049863,120]
[354733265,1740651049582,-500.0,0.00049863,120]
[354733266,1740651049591,-500.0,0.00049863,120]
[354733267,1740651049600,-500.0,0.00049863,120]
[354733268,1740651049611,-500.0,0.00049863,120]
[354733269,1740651049620,-500.0,0.00049863,120]
[354733270,1740651049630,-500.0,0.00049863,120]
[354733271,1740651049639,-500.0,0.00049863,120]
[354733272,1740651049648,-267.54,0.00049863,120]
[354733273,1740651049659,-500.0,0.00049863,120]
[354733274,1740651049669,-500.0,0.00049863,120]
[354733275,1740651049678,-500.0,0.00049863,120]
[354733276,1740651049688,-691.85,0.00049863,120]
[354733277,1740651049698,-454.65,0.00049863,120]
[354733278,1740651049707,-500.0,0.00049863,120]
[354733279,1740651049718,-500.0,0.00049863,120]
[354733280,1740651049728,-1400.1,0.00049863,120]
[354733281,1740651049737,-500.0,0.00049863,120]
[354733282,1740651049746,-500.0,0.00049863,120]
[354733283,1740651049757,-500.0,0.00049863,120]